fUST/lending_fUST_20240116
["ID","MTS","AMOUNT","RATE_DAILY","PERIOD"]
[311734485,1705368642278,-427.78614469,0.00023774,2]
[311734486,1705368642287,-574.01,0.00023944,2]
[311734487,1705368642297,-500.0,0.00023944,2]
[311734488,1705368642307,-675.48,0.00023944,2]
[311734489,1705368642317,-500.0,0.00023944,2]
[311734490,1705368642326,-500.0,0.00023944,2]
[311734491,1705368642335,-500.0,0.00023944,2]
[311734492,1705368642344,-500.0,0.00023944,2]
[311734493,1705368642354,-500.0,0.00023944,2]
[311734494,1705368642363,-911.07,0.00023944,2]
[311734495,1705368642373,-5460.4,0.00023944,2]
[311734496,1705368642382,-520.26,0.00023944,2]
[311734498,1705368642391,-500.0,0.00023944,2]
[311734499,1705368642403,-4154.35,0.00023944,2]
[311734501,1705368642412,-500.0,0.00023974,2]
[311734503,1705368642421,-2155.34,0.00023974,2]
[311734505,1705368642430,-2383.83,0.00023974,2]
[311734507,1705368642439,-500.0,0.00023974,2]
[311734509,1705368642448,-1167.95,0.00023974,2]
[311734511,1705368642458,-548.66,0.00023974,2]
[311734513,1705368642467,-882.0,0.00023974,2]
[311734515,1705368642476,-500.0,0.00023975,2]
[311734517,1705368642486,-787.81,0.00023975,2]
[311734519,1705368642495,-607.49,0.00023975,2]
[311734521,1705368642504,-3284.36,0.00023975,2]
[311734523,1705368642513,-500.0,0.00023975,2]
[311734525,1705368642522,-833.33,0.00023975,2]
[311734527,1705368642531,-500.0,0.00023975,2]
[311734528,1705368642539,-1053.04,0.00023975,2]
[311734530,1705368642549,-500.0,0.00023975,2]
[311734532,1705368642558,-620.41,0.00023975,2]
[311734534,1705368642568,-500.0,0.00023975,2]
[311734536,1705368642577,-500.0,0.00023975,2]
[311734537,1705368642587,-517.68,0.00023975,2]
[311734538,1705368642596,-1481.86,0.00023975,2]
[311734539,1705368642606,-500.0,0.00023975,2]
[311734540,1705368642615,-500.0,0.00023976,2]
[311734541,1705368642624,-969.09,0.00023976,2]
[311734542,1705368642633,-386.81162016,0.00023976,2]
[311734543,1705368642643,-500.0,0.00023976,2]
[311734544,1705368642654,-500.0,0.00023976,2]
[311734545,1705368642664,-685.5,0.00023976,2]
[311734546,1705368642675,-333.73200533,0.00023976,2]
[311734547,1705368642694,-568.69945561,0.00023976,2]
[311734548,1705368642713,-500.0,0.00023976,2]
[311734549,1705368642722,-500.0,0.00023976,2]
[311734551,1705368642734,-500.0,0.00023976,2]
[311734553,1705368642743,-526.45,0.00023976,2]
[311734554,1705368642752,-500.0,0.00023976,2]
[311734555,1705368642761,-805.83,0.00023976,2]
[311734556,1705368642770,-500.0,0.00023976,2]
[311734557,1705368642780,-500.0,0.00023976,2]
[311734558,1705368642790,-2260.19,0.00023976,2]
[311734559,1705368642800,-500.0,0.00023976,2]
[311734560,1705368642810,-500.0,0.00023976,2]
[311734561,1705368642820,-500.0,0.00023976,2]
[311734562,1705368642831,-500.0,0.00023977,2]
[311734563,1705368642841,-500.0,0.00023979,2]
[311734564,1705368642851,-500.0,0.00023979,2]
[311734565,1705368642859,-487.90388007,0.00023979,2]
[311734566,1705368642869,-621.9,0.00023979,2]
[311734567,1705368642879,-500.0,0.00023979,2]
[311734568,1705368642888,-500.0,0.00023979,2]
[311734569,1705368642898,-500.0,0.00023979,2]
[311734570,1705368642908,-500.0,0.00023979,2]
[311734571,1705368642917,-1387.53,0.00023979,2]
[311734572,1705368642927,-3049.35334894,0.00024,2]
[311734573,1705368642938,-9430.35,0.00024047,2]
[311734574,1705368642947,-151.0,0.00024048,2]
[311734575,1705368642957,-720.94,0.00024048,2]
[311734576,1705368642966,-899.43,0.00024048,2]
[311734577,1705368642975,-1256.13,0.00024048,2]
[311734578,1705368642985,-14889.7,0.00024048,2]
[311734579,1705368642995,-500.0,0.00024048,2]
[311734580,1705368643005,-3351.38,0.00024048,2]
[311734581,1705368643014,-455.08047891,0.00024148,2]
[311734582,1705368643023,-574.01,0.00024218,2]
[311734583,1705368643032,-500.0,0.00024218,2]
[311734584,1705368643041,-675.48,0.00024218,2]
[311734585,1705368643051,-500.0,0.00024218,2]
[311734586,1705368643060,-500.0,0.00024218,2]
[311734587,1705368643069,-588.93186715,0.00024218,2]
[311734588,1705368643078,-500.0,0.00024218,2]
[311734589,1705368643088,-500.0,0.00024218,2]
[311734590,1705368643097,-911.07,0.00024218,2]
[311734591,1705368643106,-5460.4,0.00024218,2]
[311734592,1705368643115,-520.26,0.00024218,2]
[311734593,1705368643124,-4154.35,0.00024218,2]
[311734594,1705368643133,-2016.977426,0.00024218,2]
[311734595,1705368643143,-2016.977426,0.00024218,2]
[311734596,1705368643154,-500.0,0.00024248,2]
[311734597,1705368643163,-2155.34,0.00024248,2]
[311734598,1705368643172,-2383.83,0.00024248,2]
[311734599,1705368643181,-500.0,0.00024248,2]
[311734600,1705368643191,-1167.95,0.00024248,2]
[311734601,1705368643200,-548.66,0.00024248,2]
[311734602,1705368643209,-882.0,0.00024248,2]
[311734603,1705368643219,-500.0,0.00024249,2]
[311734604,1705368643228,-787.81,0.00024249,2]
[311734605,1705368643237,-607.49,0.00024249,2]
[311734606,1705368643246,-3284.36,0.00024249,2]
[311734607,1705368643255,-500.0,0.00024249,2]
[311734608,1705368643264,-833.33,0.00024249,2]
[311734609,1705368643274,-500.0,0.00024249,2]
[311734610,1705368643283,-1053.04,0.00024249,2]
[311734611,1705368643292,-500.0,0.00024249,2]
[311734612,1705368643302,-620.41,0.00024249,2]
[311734613,1705368643311,-500.0,0.00024249,2]
[311734614,1705368643320,-517.68,0.00024249,2]
[311734615,1705368643330,-1481.86,0.00024249,2]
[311734616,1705368643339,-500.0,0.00024249,2]
[311734617,1705368643349,-500.0,0.0002425,2]
[311734618,1705368643358,-969.09,0.0002425,2]
[311734619,1705368643367,-500.0,0.0002425,2]
[311734620,1705368643376,-685.5,0.0002425,2]
[311734621,1705368643385,-500.0,0.0002425,2]
[311734622,1705368643395,-500.0,0.0002425,2]
[311734623,1705368643405,-500.0,0.0002425,2]
[311734624,1705368643414,-526.45,0.0002425,2]
[311734625,1705368643424,-500.0,0.0002425,2]
[311734626,1705368643433,-805.83,0.0002425,2]
[311734627,1705368643442,-500.0,0.0002425,2]
[311734628,1705368643451,-500.0,0.0002425,2]
[311734629,1705368643460,-2260.19,0.0002425,2]
[311734630,1705368643470,-500.0,0.0002425,2]
[311734631,1705368643479,-500.0,0.0002425,2]
[311734632,1705368643489,-500.0,0.0002425,2]
[311734633,1705368643498,-500.0,0.00024251,2]
[311734634,1705368643507,-500.0,0.00024253,2]
[311734635,1705368643517,-500.0,0.00024253,2]
[311734636,1705368643526,-621.9,0.00024253,2]
[311734637,1705368643535,-500.0,0.00024253,2]
[311734638,1705368643544,-500.0,0.00024253,2]
[311734639,1705368643553,-500.0,0.00024253,2]
[311734640,1705368643563,-500.0,0.00024253,2]
[311734641,1705368643572,-1387.53,0.00024253,2]
[311734642,1705368643583,-200.0,0.0002432,7]
[311734643,1705368643592,-9430.35,0.00024321,2]
[311734644,1705368643668,-720.94,0.00024322,2]
[311734645,1705368643678,-899.43,0.00024322,2]
[311734646,1705368643687,-1256.13,0.00024322,2]
[311734647,1705368643697,-14889.7,0.00024322,2]
[311734648,1705368643706,-585.28465843,0.00024322,2]
[311734649,1705368643716,-3351.38,0.00024322,2]
[311734650,1705368643725,-151.0,0.00024491,2]
[311734651,1705368643735,-574.01,0.00024492,2]
[311734652,1705368643743,-500.0,0.00024492,2]
[311734653,1705368643753,-675.48,0.00024492,2]
[311734654,1705368643763,-500.0,0.00024492,2]
[311734655,1705368643773,-500.0,0.00024492,2]
[311734656,1705368643782,-500.0,0.00024492,2]
[311734657,1705368643791,-500.0,0.00024492,2]
[311734658,1705368643801,-911.07,0.00024492,2]
[311734659,1705368643810,-5460.4,0.00024492,2]
[311734660,1705368643820,-520.26,0.00024492,2]
[311734661,1705368643830,-4154.35,0.00024492,2]
[311734662,1705368643839,-2016.977426,0.00024492,2]
[311734664,1705368643848,-2016.977426,0.00024492,2]
[311734666,1705368643857,-500.0,0.00024522,2]
[311734668,1705368643867,-2155.34,0.00024522,2]
[311734671,1705368643893,-2383.83,0.00024522,2]
[311734672,1705368643904,-500.0,0.00024522,2]
[311734673,1705368643913,-1167.95,0.00024522,2]
[311734674,1705368643924,-548.66,0.00024522,2]
[311734675,1705368643934,-882.0,0.00024522,2]
[311734676,1705368643943,-787.81,0.00024523,2]
[311734677,1705368643952,-607.49,0.00024523,2]
[311734679,1705368643962,-3284.36,0.00024523,2]
[311734681,1705368643970,-500.0,0.00024523,2]
[311734683,1705368643979,-833.33,0.00024523,2]
[311734684,1705368643988,-500.0,0.00024523,2]
[311734687,1705368643997,-1053.04,0.00024523,2]
[311734688,1705368644007,-500.0,0.00024523,2]
[311734690,1705368644016,-620.41,0.00024523,2]
[311734692,1705368644025,-500.0,0.00024523,2]
[311734694,1705368644034,-517.68,0.00024523,2]
[311734696,1705368644043,-1481.86,0.00024523,2]
[311734698,1705368644053,-500.0,0.00024523,2]
[311734699,1705368644062,-448.75923473,0.00024524,2]
[311734700,1705368644071,-969.09,0.00024524,2]
[311734701,1705368644081,-500.0,0.00024524,2]
[311734702,1705368644090,-685.5,0.00024524,2]
[311734703,1705368644099,-500.0,0.00024524,2]
[311734704,1705368644109,-500.0,0.00024524,2]
[311734705,1705368644118,-500.0,0.00024524,2]
[311734706,1705368644128,-526.45,0.00024524,2]
[311734707,1705368644137,-212.54340364,0.00024524,2]
[311734708,1705368644148,-805.83,0.00024524,2]
[311734709,1705368644157,-500.0,0.00024524,2]
[311734710,1705368644166,-500.0,0.00024524,2]
[311734711,1705368644176,-2260.19,0.00024524,2]
[311734713,1705368644186,-453.38059894,0.00024524,2]
[311734715,1705368644195,-500.0,0.00024524,2]
[311734717,1705368644205,-500.0,0.00024524,2]
[311734720,1705368644214,-500.0,0.00024525,2]
[311734721,1705368644223,-500.0,0.00024527,2]
[311734723,1705368644232,-500.0,0.00024527,2]
[311734725,1705368644242,-621.9,0.00024527,2]
[311734728,1705368644251,-500.0,0.00024527,2]
[311734730,1705368644261,-500.0,0.00024527,2]
[311734731,1705368644271,-500.0,0.00024527,2]
[311734733,1705368644280,-456.70146897,0.00024527,2]
[311734736,1705368644290,-1387.53,0.00024527,2]
[311734738,1705368644299,-9430.35,0.00024595,2]
[311734740,1705368644308,-720.94,0.00024596,2]
[311734741,1705368644317,-899.43,0.00024596,2]
[311734743,1705368644326,-1256.13,0.00024596,2]
[311734745,1705368644336,-14889.7,0.00024596,2]
[311734747,1705368644345,-3351.38,0.00024596,2]
[311734749,1705368644355,-1896.06217768,0.00024646,5]
[311734751,1705368644364,-574.01,0.00024766,2]
[311734753,1705368644373,-500.0,0.00024766,2]
[311734755,1705368644382,-675.48,0.00024766,2]
[311734756,1705368644392,-500.0,0.00024766,2]
[311734757,1705368644402,-500.0,0.00024766,2]
[311734758,1705368644411,-500.0,0.00024766,2]
[311734759,1705368644420,-500.0,0.00024766,2]
[311734760,1705368644430,-911.07,0.00024766,2]
[311734761,1705368644440,-5460.4,0.00024766,2]
[311734762,1705368644449,-520.26,0.00024766,2]
[311734763,1705368644458,-4154.35,0.00024766,2]
[311734764,1705368644468,-151.0,0.00024766,2]
[311734765,1705368644477,-151.0,0.00024766,2]
[311734766,1705368644486,-2016.977426,0.00024796,2]
[311734767,1705368644495,-2016.977426,0.00024796,2]
[311734768,1705368644504,-500.0,0.00024796,2]
[311734769,1705368644513,-2155.34,0.00024796,2]
[311734770,1705368644522,-2383.83,0.00024796,2]
[311734771,1705368644531,-500.0,0.00024796,2]
[311734772,1705368644541,-1167.95,0.00024796,2]
[311734773,1705368644551,-548.66,0.00024796,2]
[311734774,1705368644560,-882.0,0.00024796,2]
[311734775,1705368644569,-787.81,0.00024797,2]
[311734776,1705368644578,-607.49,0.00024797,2]
[311734777,1705368644587,-3284.36,0.00024797,2]
[311734778,1705368644597,-500.0,0.00024797,2]
[311734779,1705368644606,-833.33,0.00024797,2]
[311734780,1705368644615,-500.0,0.00024797,2]
[311734781,1705368644625,-1053.04,0.00024797,2]
[311734782,1705368644634,-500.0,0.00024797,2]
[311734783,1705368644643,-620.41,0.00024797,2]
[311734784,1705368644653,-500.0,0.00024797,2]
[311734785,1705368644662,-517.68,0.00024797,2]
[311734786,1705368644671,-1481.86,0.00024797,2]
[311734787,1705368644682,-500.0,0.00024797,2]
[311734788,1705368644693,-969.09,0.00024798,2]
[311734789,1705368644702,-500.0,0.00024798,2]
[311734790,1705368644712,-685.5,0.00024798,2]
[311734791,1705368644721,-500.0,0.00024798,2]
[311734792,1705368644731,-500.0,0.00024798,2]
[311734793,1705368644741,-500.0,0.00024798,2]
[311734794,1705368644750,-526.45,0.00024798,2]
[311734795,1705368644759,-805.83,0.00024798,2]
[311734796,1705368644769,-500.0,0.00024798,2]
[311734797,1705368644778,-500.0,0.00024798,2]
[311734798,1705368644788,-2260.19,0.00024798,2]
[311734799,1705368644797,-500.0,0.00024798,2]
[311734800,1705368644806,-500.0,0.00024799,2]
[311734801,1705368644815,-500.0,0.00024801,2]
[311734802,1705368644824,-611.99,0.00024801,2]
[311734803,1705368644833,-621.9,0.00024801,2]
[311734804,1705368644842,-500.0,0.00024801,2]
[311734805,1705368644851,-500.0,0.00024801,2]
[311734806,1705368644860,-500.0,0.00024801,2]
[311734807,1705368644869,-1387.53,0.00024801,2]
[311734808,1705368644879,-500.0,0.00024835,2]
[311734809,1705368644889,-9430.35,0.00024869,2]
[311734810,1705368644899,-720.94,0.0002487,2]
[311734811,1705368644908,-899.43,0.0002487,2]
[311734812,1705368644917,-1256.13,0.0002487,2]
[311734813,1705368644926,-14889.7,0.0002487,2]
[311734814,1705368644936,-3351.38,0.0002487,2]
[311734815,1705368644945,-497.00944952,0.0002495,5]
[311734816,1705368644954,-574.01,0.0002504,2]
[311734818,1705368644963,-500.0,0.0002504,2]
[311734820,1705368644973,-675.48,0.0002504,2]
[311734822,1705368644982,-500.0,0.0002504,2]
[311734824,1705368644992,-500.0,0.0002504,2]
[311734826,1705368645001,-500.0,0.0002504,2]
[311734828,1705368645010,-500.0,0.0002504,2]
[311734830,1705368645020,-911.07,0.0002504,2]
[311734832,1705368645030,-5460.4,0.0002504,2]
[311734834,1705368645039,-520.26,0.0002504,2]
[311734836,1705368645048,-4154.35,0.0002504,2]
[311734838,1705368645057,-562.16562428,0.00025061,2]
[311734840,1705368645067,-520.87111921,0.0002507,2]
[311734842,1705368645076,-2155.34,0.0002507,2]
[311734844,1705368645085,-2383.83,0.0002507,2]
[311734846,1705368645094,-500.0,0.0002507,2]
[311734848,1705368645103,-1167.95,0.0002507,2]
[311734850,1705368645112,-548.66,0.0002507,2]
[311734852,1705368645121,-882.0,0.0002507,2]
[311734854,1705368645131,-151.0,0.0002507,2]
[311734856,1705368645140,-151.0,0.00025071,2]
[311734858,1705368645150,-2016.977426,0.00025071,2]
[311734860,1705368645159,-2016.977426,0.00025071,2]
[311734862,1705368645167,-787.81,0.00025071,2]
[311734864,1705368645176,-607.49,0.00025071,2]
[311734872,1705368645249,-3284.36,0.00025071,2]
[311734875,1705368645260,-500.0,0.00025071,2]
[311734877,1705368645269,-833.33,0.00025071,2]
[311734879,1705368645278,-500.0,0.00025071,2]
[311734881,1705368645288,-1053.04,0.00025071,2]
[311734883,1705368645297,-500.0,0.00025071,2]
[311734885,1705368645306,-620.41,0.00025071,2]
[311734887,1705368645316,-500.0,0.00025071,2]
[311734889,1705368645326,-517.68,0.00025071,2]
[311734891,1705368645335,-1481.86,0.00025071,2]
[311734893,1705368645344,-528.40764431,0.00025071,2]
[311734895,1705368645353,-969.09,0.00025072,2]
[311734897,1705368645363,-500.0,0.00025072,2]
[311734899,1705368645371,-685.5,0.00025072,2]
[311734901,1705368645381,-500.0,0.00025072,2]
[311734903,1705368645391,-500.0,0.00025072,2]
[311734904,1705368645401,-500.0,0.00025072,2]
[311734906,1705368645411,-526.45,0.00025072,2]
[311734907,1705368645421,-805.83,0.00025072,2]
[311734908,1705368645431,-500.0,0.00025072,2]
[311734909,1705368645440,-500.0,0.00025072,2]
[311734910,1705368645449,-2260.19,0.00025072,2]
[311734911,1705368645459,-500.0,0.00025072,2]
[311734912,1705368645469,-500.0,0.00025073,2]
[311734913,1705368645478,-500.0,0.00025075,2]
[311734914,1705368645487,-621.9,0.00025075,2]
[311734915,1705368645497,-500.0,0.00025075,2]
[311734916,1705368645506,-500.0,0.00025075,2]
[311734917,1705368645515,-500.0,0.00025075,2]
[311734918,1705368645524,-1387.53,0.00025075,2]
[311734919,1705368645534,-9430.35,0.00025143,2]
[311734920,1705368645543,-720.94,0.00025144,2]
[311734921,1705368645552,-899.43,0.00025144,2]
[311734922,1705368645562,-1256.13,0.00025144,2]
[311734923,1705368645572,-14889.7,0.00025144,2]
[311734924,1705368645582,-3351.38,0.00025144,2]
[311734925,1705368645591,-574.01,0.00025314,2]
[311734926,1705368645599,-500.0,0.00025314,2]
[311734927,1705368645609,-675.48,0.00025314,2]
[311734928,1705368645619,-500.0,0.00025314,2]
[311734929,1705368645629,-500.0,0.00025314,2]
[311734930,1705368645638,-500.0,0.00025314,2]
[311734931,1705368645648,-500.0,0.00025314,2]
[311734933,1705368645657,-911.07,0.00025314,2]
[311734934,1705368645666,-5460.4,0.00025314,2]
[311734935,1705368645676,-520.26,0.00025314,2]
[311734936,1705368645685,-4154.35,0.00025314,2]
[311734937,1705368645694,-2155.34,0.00025344,2]
[311734938,1705368645704,-2383.83,0.00025344,2]
[311734939,1705368645713,-500.0,0.00025344,2]
[311734941,1705368645724,-1167.95,0.00025344,2]
[311734944,1705368645733,-548.66,0.00025344,2]
[311734947,1705368645743,-882.0,0.00025344,2]
[311734950,1705368645752,-151.0,0.00025344,2]
[311734953,1705368645762,-151.0,0.00025345,2]
[311734956,1705368645771,-787.81,0.00025345,2]
[311734958,1705368645780,-607.49,0.00025345,2]
[311734959,1705368645789,-3284.36,0.00025345,2]
[311734960,1705368645799,-500.0,0.00025345,2]
[311734961,1705368645809,-833.33,0.00025345,2]
[311734962,1705368645818,-500.0,0.00025345,2]
[311734963,1705368645827,-1053.04,0.00025345,2]
[311734964,1705368645836,-500.0,0.00025345,2]
[311734967,1705368645846,-620.41,0.00025345,2]
[311734970,1705368645855,-638.03491257,0.00025345,2]
[311734974,1705368645865,-517.68,0.00025345,2]
[311734977,1705368645875,-1481.86,0.00025345,2]
[311734979,1705368645884,-969.09,0.00025346,2]
[311734981,1705368645893,-500.0,0.00025346,2]
[311734982,1705368645903,-685.5,0.00025346,2]
[311734983,1705368645911,-224.98361669,0.00025346,2]
[311734984,1705368645921,-500.0,0.00025346,2]
[311734985,1705368645930,-500.0,0.00025346,2]
[311734986,1705368645939,-526.45,0.00025346,2]
[311734987,1705368645948,-805.83,0.00025346,2]
[311734988,1705368645957,-500.0,0.00025346,2]
[311734989,1705368645966,-500.0,0.00025346,2]
[311734990,1705368645975,-2260.19,0.00025346,2]
[311734991,1705368645984,-500.0,0.00025346,2]
[311734992,1705368645994,-2016.977426,0.00025346,2]
[311734993,1705368646003,-2016.977426,0.00025346,2]
[311734994,1705368646012,-500.0,0.00025347,2]
[311734995,1705368646021,-269.59946772,0.00025349,2]
[311734996,1705368646030,-621.9,0.00025349,2]
[311734997,1705368646040,-500.0,0.00025349,2]
[311734998,1705368646049,-500.0,0.00025349,2]
[311734999,1705368646058,-500.0,0.00025349,2]
[311735000,1705368646067,-1387.53,0.00025349,2]
[311735001,1705368646077,-615.80248759,0.00025383,2]
[311735002,1705368646086,-889.12928806,0.00025408,2]
[311735003,1705368646096,-968.00537608,0.00025409,2]
[311735004,1705368646106,-9430.35,0.00025417,2]
[311735005,1705368646115,-720.94,0.00025418,2]
[311735006,1705368646124,-899.43,0.00025418,2]
[311735007,1705368646133,-1256.13,0.00025418,2]
[311735008,1705368646142,-14889.7,0.00025418,2]
[311735009,1705368646152,-3351.38,0.00025418,2]
[311735010,1705368646160,-50000.0,0.00025495,2]
[311735011,1705368646170,-151.0,0.00025495,2]
[311735012,1705368646179,-1044.83564264,0.00025533,2]
[311735013,1705368646188,-2084.34467945,0.00025559,2]
[311735014,1705368646198,-313.77885602,0.00025559,2]
[311735015,1705368646207,-563.16571691,0.0002556,2]
[311735016,1705368646216,-2016.977426,0.00025588,2]
[311735017,1705368646226,-2016.977426,0.00025588,2]
[311735018,1705368646235,-574.01,0.00025588,2]
[311735019,1705368646244,-500.0,0.00025588,2]
[311735020,1705368646253,-675.48,0.00025588,2]
[311735021,1705368646263,-500.0,0.00025588,2]
[311735022,1705368646272,-500.0,0.00025588,2]
[311735023,1705368646281,-500.0,0.00025588,2]
[311735024,1705368646291,-500.0,0.00025588,2]
[311735025,1705368646300,-911.07,0.00025588,2]
[311735026,1705368646309,-5460.4,0.00025588,2]
[311735027,1705368646318,-520.26,0.00025588,2]
[311735028,1705368646327,-4154.35,0.00025588,2]
[311735029,1705368646336,-2155.34,0.00025618,2]
[311735030,1705368646345,-2383.83,0.00025618,2]
[311735031,1705368646354,-500.0,0.00025618,2]
[311735032,1705368646363,-1167.95,0.00025618,2]
[311735033,1705368646373,-548.66,0.00025618,2]
[311735034,1705368646382,-882.0,0.00025618,2]
[311735035,1705368646391,-151.0,0.00025619,2]
[311735036,1705368646401,-787.81,0.00025619,2]
[311735037,1705368646410,-607.49,0.00025619,2]
[311735038,1705368646419,-3284.36,0.00025619,2]
[311735039,1705368646429,-500.0,0.00025619,2]
[311735040,1705368646438,-833.33,0.00025619,2]
[311735041,1705368646448,-500.0,0.00025619,2]
[311735042,1705368646458,-1053.04,0.00025619,2]
[311735043,1705368646467,-500.0,0.00025619,2]
[311735044,1705368646476,-620.41,0.00025619,2]
[311735045,1705368646486,-517.68,0.00025619,2]
[311735046,1705368646495,-1481.86,0.00025619,2]
[311735047,1705368646504,-969.09,0.0002562,2]
[311735048,1705368646514,-500.0,0.0002562,2]
[311735049,1705368646523,-685.5,0.0002562,2]
[311735050,1705368646532,-500.0,0.0002562,2]
[311735051,1705368646541,-500.0,0.0002562,2]
[311735052,1705368646550,-526.45,0.0002562,2]
[311735053,1705368646560,-805.83,0.0002562,2]
[311735054,1705368646569,-500.0,0.0002562,2]
[311735055,1705368646578,-500.0,0.0002562,2]
[311735056,1705368646587,-2260.19,0.0002562,2]
[311735057,1705368646596,-500.0,0.0002562,2]
[311735058,1705368646605,-500.0,0.00025621,2]
[311735059,1705368646615,-621.9,0.00025623,2]
[311735060,1705368646687,-500.0,0.00025623,2]
[311735061,1705368646697,-500.0,0.00025623,2]
[311735062,1705368646707,-500.0,0.00025623,2]
[311735063,1705368646716,-1387.53,0.00025623,2]
[311735064,1705368646726,-9430.35,0.00025691,2]
[311735065,1705368646735,-720.94,0.00025692,2]
[311735066,1705368646745,-899.43,0.00025692,2]
[311735067,1705368646754,-1256.13,0.00025692,2]
[311735068,1705368646765,-14889.7,0.00025692,2]
[311735069,1705368646775,-1840.64915591,0.00025692,2]
[311735070,1705368646851,-1510.73084409,0.00025692,2]
[311735071,1705368646861,-151.0,0.00025731,2]
[311735072,1705368646872,-408.17851561,0.00025862,2]
[311735075,1705368647165,-6058.0780468,0.00022106,2]
[311735076,1705368647175,-500.0,0.00022119,2]
[311735077,1705368647186,-500.0,0.00023395,2]
[311735078,1705368647195,-500.0,0.00023395,2]
[311735079,1705368647206,-408.91261898,0.00023395,2]
[311735080,1705368647215,-501.86375684,0.00023396,2]
[311735081,1705368647225,-500.0,0.00024798,2]
[311735082,1705368647235,-282.07222756,0.00025072,2]
[311735084,1705368647244,-165.83148439,0.00025862,2]
[311735086,1705368647253,-500.0,0.00025862,2]
[311735088,1705368647263,-675.48,0.00025862,2]
[311735090,1705368647272,-500.0,0.00025862,2]
[311735092,1705368647282,-500.0,0.00025862,2]
[311735094,1705368647291,-500.0,0.00025862,2]
[311735096,1705368647300,-305.01634316,0.00025862,2]
[311735098,1705368647310,-911.07,0.00025862,2]
[311735100,1705368647320,-5460.4,0.00025862,2]
[311735102,1705368647330,-520.26,0.00025862,2]
[311735104,1705368647339,-4154.35,0.00025862,2]
[311735106,1705368647349,-2155.34,0.00025892,2]
[311735108,1705368647360,-2383.83,0.00025892,2]
[311735110,1705368647369,-500.0,0.00025892,2]
[311735112,1705368647378,-1167.95,0.00025892,2]
[311735114,1705368647388,-548.66,0.00025892,2]
[311735116,1705368647397,-882.0,0.00025892,2]
[311735117,1705368647408,-151.0,0.00025892,2]
[311735119,1705368647417,-2016.977426,0.00025893,2]
[311735121,1705368647427,-2016.977426,0.00025893,2]
[311735123,1705368647436,-787.81,0.00025893,2]
[311735125,1705368647445,-607.49,0.00025893,2]
[311735127,1705368647455,-500.0,0.00025893,2]
[311735128,1705368647463,-833.33,0.00025893,2]
[311735129,1705368647473,-500.0,0.00025893,2]
[311735130,1705368647483,-1053.04,0.00025893,2]
[311735131,1705368647492,-500.0,0.00025893,2]
[311735132,1705368647501,-620.41,0.00025893,2]
[311735133,1705368647510,-517.68,0.00025893,2]
[311735134,1705368647520,-1481.86,0.00025893,2]
[311735135,1705368647529,-171.982358,0.00025894,2]
[311735136,1705368647538,-969.09,0.00025894,2]
[311735137,1705368647547,-500.0,0.00025894,2]
[311735138,1705368647557,-685.5,0.00025894,2]